bitfinex/quotes_ETHUSD_20250130
["timestamp","ask_amount","ask_price","bid_price","bid_amount"]
[1738269817511,3.08492,3241.6,3241.1,0.56591274]
[1738269817698,0.8238,3241.8,3241.3,3.08516]
[1738269817699,3.08476,3241.8,3241.3,3.08516]
[1738269817905,3.08453,3242.0,3241.3,3.08516]
[1738269817906,3.08461,3241.9,3241.3,3.08516]
[1738269818105,3.08471,3241.8,3241.2,3.08521]
[1738269818299,3.08471,3241.8,3241.2,3.70885527]
[1738269818500,3.08471,3241.8,3241.2,0.67364527]
[1738269818726,3.08471,3241.8,3241.1,0.56591274]
[1738269818727,0.03855952,3241.8,3241.1,0.56591274]
[1738269818926,3.08512,3241.4,3241.1,0.56591274]
[1738269819296,3.08397,3242.6,3241.1,0.56591274]
[1738269819630,3.08455,3242.0,3241.2,3.08525]
[1738269819799,3.08455,3242.0,3241.4,3.08501]
[1738269820005,3.08451,3242.0,3241.5,3.08489]
[1738269820994,3.08451,3242.0,3241.4,3.08506]
[1738269821518,3.08476,3241.8,3241.2,3.45038627]
[1738269821694,3.08476,3241.8,3241.3,3.08516]
[1738269821890,3.08494,3241.6,3241.1,0.56591274]
[1738269822098,3.08504,3241.5,3241.1,0.56591274]
[1738269822430,6.50722525,3241.4,3240.5,0.001848]
[1738269822616,3.08584,3240.6,3240.5,0.001848]
[1738269824127,3.07951223,3240.6,3240.5,0.001848]
[1738269824994,3.91044,3240.8,3240.5,0.001848]
[1738269825634,3.08584,3240.6,3240.5,0.001848]
[1738269827022,3.08578,3240.7,3240.5,0.001848]
[1738269827442,3.08584,3240.6,3240.5,0.001848]
[1738269830756,3.91043,3240.8,3240.5,0.001848]
[1738269832145,6.59303525,3240.7,3240.5,0.001848]
[1738269832349,3.08584,3240.6,3240.5,0.001848]
[1738269832840,6.12441755,3240.6,3240.5,0.001848]
[1738269833141,6.43412033,3240.6,3240.5,0.001848]
[1738269833347,7.23772033,3240.6,3240.5,0.001848]
[1738269837949,7.78772033,3240.6,3240.5,8e-06]
[1738269840648,10.68838324,3240.6,3240.5,8e-06]
[1738269840822,10.13838324,3240.6,3240.5,8e-06]
[1738269841019,9.79010291,3240.6,3240.5,8e-06]
[1738269841421,5.98650291,3240.6,3240.5,8e-06]
[1738269842440,3.08584,3240.6,3240.5,8e-06]
[1738269842646,3.08573,3240.8,3240.5,8e-06]
[1738269842843,3.08551,3241.0,3240.5,8e-06]
[1738269843225,3.08584,3240.6,3240.5,8e-06]
[1738269844220,3.08575,3240.8,3240.5,8e-06]
[1738269844221,3.0855,3241.0,3240.5,8e-06]
[1738269844428,3.08568,3240.8,3240.5,8e-06]
[1738269844663,3.08546,3241.0,3240.5,8e-06]
[1738269844970,3.0853,3241.2,3240.5,8e-06]
[1738269845161,6.17067,3241.2,3240.6,0.3085998]
[1738269845321,3.0853,3241.2,3240.6,3.3944098]
[1738269845515,3.08537,3241.1,3240.6,0.3085998]
[1738269845955,3.08547,3241.0,3240.6,0.3085998]
[1738269847136,3.08522,3241.3,3240.6,0.3085998]
[1738269847326,3.08522,3241.3,3240.7,0.33945178]
[1738269847837,0.8313,3241.7,3240.8,0.7515]
[1738269848029,3.08517,3241.4,3240.8,0.7515]
[1738269848225,3.08522,3241.3,3240.8,3.83708]
[1738269848426,3.08527,3241.2,3240.8,0.7515]
[1738269848652,3.0852,3241.3,3240.9,0.41766618]
[1738269848845,3.08534,3241.2,3240.9,0.41766618]
[1738269849050,3.08556,3240.9,3240.8,0.7515]
[1738269849467,3.08522,3241.3,3240.8,0.7515]
[1738269849640,3.08498,3241.6,3240.9,3.08554]
[1738269849838,3.08513,3241.4,3240.9,3.08554]
[1738269850549,3.08513,3241.4,3240.8,0.7515]
[1738269850550,3.08528,3241.2,3240.8,0.7515]
[1738269850731,3.08537,3241.1,3240.8,0.7515]
[1738269851062,3.08556,3240.9,3240.8,0.7515]
[1738269851278,3.08556,3240.9,3240.5,0.821908]
[1738269851429,3.0857,3240.8,3240.5,0.821908]
[1738269851627,3.0857,3240.8,3240.5,1.2127108]
[1738269852067,3.0857,3240.8,3240.5,0.821908]
[1738269852464,3.08575,3240.7,3240.5,0.821908]
[1738269853005,3.08562,3240.9,3240.5,0.821908]
[1738269853131,3.08551,3241.0,3240.5,0.821908]
[1738269853455,3.08566,3240.8,3240.5,0.821908]
[1738269853861,3.08561,3240.9,3240.5,1.2127068]
[1738269854037,3.08548,3241.0,3240.5,1.2127068]
[1738269854241,3.08566,3240.8,3240.5,0.821908]
[1738269854440,3.51267329,3241.6,3240.5,0.821908]
[1738269854757,0.754,3243.7,3240.5,0.821908]
[1738269854758,3.08414,3242.4,3241.7,0.8075]
[1738269855131,3.51267329,3242.7,3241.7,0.8075]
[1738269855333,3.0848,3241.7,3241.3,0.8249]
[1738269855671,3.08464,3241.9,3240.8,0.7702]
[1738269855830,0.827,3242.2,3240.9,0.01568652]
[1738269856034,3.08457,3242.0,3241.4,0.8029]
[1738269856235,3.08434,3242.2,3241.4,3.88792]
[1738269856437,0.7617,3242.3,3241.4,0.8029]
[1738269856632,3.0846,3242.0,3241.4,0.8029]
[1738269857140,3.08457,3242.0,3241.4,0.8029]
[1738269857543,3.08432,3242.2,3241.4,0.8029]
[1738269857742,0.61221465,3242.4,3241.4,0.8029]
[1738269857945,3.08491,3241.6,3241.1,0.8136]
[1738269858278,0.7812,3242.0,3241.1,0.8136]
[1738269858279,3.08502,3241.5,3241.1,0.8136]
[1738269858881,3.08524,3241.3,3240.8,0.8141]
[1738269859356,0.61077795,3241.7,3240.8,1.204078]
[1738269859554,0.8091,3241.1,3240.5,8e-06]
[1738269859788,3.08584,3240.6,3240.5,8e-06]
[1738269861654,6.85514,3240.6,3240.5,8e-06]
[1738269863744,6.08584,3240.6,3240.5,8e-06]
[1738269865397,6.93311712,3240.6,3240.5,8e-06]
[1738269865582,7.44454,3240.6,3240.5,8e-06]
[1738269867478,3.08727,3239.1,3239.0,0.44031675]
[1738269867677,3.08772,3238.7,3238.3,0.25]
[1738269868191,3.08718,3239.2,3238.3,0.25]
[1738269868192,3.08794,3238.4,3238.3,0.25]
[1738269868488,3.08783,3238.6,3238.3,0.25]
[1738269868690,3.08794,3238.4,3238.3,0.25]
[1738269869095,3.08788,3238.5,3238.3,0.25]
[1738269869273,15.44065,3238.2,3234.3,14.32]
[1738269869606,3.29386,3232.2,3231.1,9.62831235]
[1738269869809,6.81862149,3232.2,3231.1,9.62831235]
[1738269870026,6.71862149,3232.2,3231.1,9.62831235]
[1738269870618,0.1075,3232.2,3231.1,9.62831235]
[1738269870756,3.19386,3232.2,3231.2,35.0]
[1738269870957,0.3,3232.5,3231.3,0.7315]
[1738269871179,0.1,3232.2,3231.4,3.12998842]
[1738269871380,0.1,3232.2,3231.3,0.7315]
[1738269871597,3.09396,3232.1,3231.3,0.74742195]
[1738269871768,0.2,3232.3,3231.4,35.0]
[1738269871968,0.2,3232.2,3231.4,35.0]
[1738269872179,0.1,3231.7,3231.4,35.0]
[1738269872377,0.1,3231.7,3231.5,3.12998842]
[1738269872563,3.09467,3231.4,3231.1,0.01192701]
[1738269872770,0.2,3231.7,3231.1,0.01192701]
[1738269873030,0.2,3232.2,3231.2,35.0]
[1738269873184,0.1,3231.7,3231.2,38.09482]
[1738269873505,0.1,3231.7,3231.2,35.0]
[1738269873824,0.1,3231.9,3231.5,3.09451]
[1738269874024,0.2,3232.0,3231.6,0.7971]
[1738269874172,0.1,3232.1,3231.9,35.0]
[1738269874371,0.2,3232.2,3231.9,38.09414]
[1738269874605,0.1,3232.8,3232.0,0.01591045]
[1738269874899,0.1,3232.6,3232.1,3.09386]
[1738269875100,0.1,3232.6,3232.5,35.0]
[1738269875270,3.0,3233.6,3232.5,35.0]
[1738269875271,0.1,3233.1,3232.5,35.0]
[1738269875467,0.1,3232.9,3232.6,3.09344]
[1738269875906,0.1,3233.5,3232.5,0.271]
[1738269876073,0.1,3233.5,3233.1,3.09293]
[1738269876276,0.1,3233.8,3233.4,3.09271]
[1738269876585,0.1,3234.0,3233.5,3.10847947]
[1738269876794,0.1,3234.2,3233.5,3.10839947]
[1738269877002,0.1,3234.0,3233.7,3.09242]
[1738269877174,0.1,3234.2,3233.8,3.0923]
[1738269877505,0.1,3234.2,3233.9,0.58181648]
[1738269877723,0.7669,3235.5,3233.9,0.58181648]
[1738269877724,0.1,3234.4,3234.0,3.1080023]
[1738269877927,0.1,3234.4,3233.9,0.58181648]
[1738269878077,0.1,3234.4,3233.9,3.40301648]
[1738269878403,0.1,3234.4,3234.0,3.74164165]
[1738269878620,3.08295693,3234.1,3234.0,3.74164165]
[1738269878782,2.86618652,3234.1,3234.0,1.44955903]
[1738269878970,2.86618652,3234.1,3234.0,3.36214]
[1738269880235,2.86618652,3234.1,3233.9,0.31081648]
[1738269880379,0.1,3233.7,3233.0,3.92427]
[1738269880705,0.1,3233.7,3233.1,3.09296]
[1738269880906,0.1,3233.7,3233.3,0.3485373]
[1738269881219,0.1,3233.9,3233.3,0.01587455]
[1738269881517,0.1,3233.9,3233.5,3.09262]
[1738269881809,0.1,3233.9,3233.3,3.09279]
[1738269882809,0.1,3233.9,3233.4,3.09269]
[1738269883010,0.1,3233.9,3233.5,0.309269]
[1738269883374,0.1,3234.2,3233.6,3.10838773]
[1738269883600,0.1,3234.2,3233.7,3.09241]
[1738269884276,0.1,3234.2,3233.5,3.401849]
[1738269884476,0.1,3234.2,3233.6,3.7419639]
[1738269884681,0.1,3234.4,3233.7,3.0924]
[1738269884886,0.1,3234.4,3233.8,3.10817002]
[1738269885213,0.1,3234.6,3234.0,3.09212]
[1738269885533,0.1,3234.6,3233.8,3.09229]
[1738269885696,0.1,3234.2,3233.9,0.618469]
[1738269885900,0.1,3233.9,3233.5,0.309269]
[1738269886636,0.1,3234.1,3233.5,3.401869]
[1738269887219,0.1,3233.9,3233.5,0.309269]
[1738269887605,0.1,3233.9,3233.3,3.09281]
[1738269887832,0.1,3233.9,3233.4,3.09271]
[1738269888327,0.1,3233.9,3233.2,3.09287]
[1738269888617,0.1,3233.9,3233.4,3.09271]
[1738269889612,4.07977537,3235.1,3233.6,3.09252]
[1738269889613,0.1,3234.2,3233.6,3.09252]
[1738269889840,0.1,3234.4,3233.7,0.31083877]
[1738269890044,4.07977537,3235.6,3233.1,0.01586132]
[1738269890045,0.1,3234.6,3234.2,3.09189]
[1738269890539,0.1,3234.6,3234.0,3.09213]
[1738269890742,0.1,3234.6,3234.1,3.88026]
[1738269891042,0.1,3234.6,3234.2,3.09194]
[1738269891193,0.1,3234.6,3233.8,3.09225]
[1738269891194,3.09175,3234.5,3233.8,3.09225]
[1738269891395,0.1,3234.6,3234.0,3.0921]
[1738269891611,0.1,3234.6,3234.1,3.09203]
[1738269891914,0.1,3234.6,3234.0,3.09214]
[1738269892116,0.1,3234.6,3234.4,3.09176]
[1738269892450,0.1,3234.8,3234.4,3.09176]
[1738269892611,0.1,3234.8,3234.4,3.09172]
[1738269893012,0.1,3234.8,3233.8,3.428085]
[1738269893013,0.1,3234.6,3234.0,3.09214]
[1738269893894,0.1,3234.6,3233.8,3.09231]
[1738269894099,0.1,3234.3,3233.8,3.09231]
[1738269894536,3.19186,3234.3,3233.7,3.09242]
[1738269894732,0.1,3234.1,3233.6,3.09249]
[1738269894917,0.1,3233.9,3233.5,3.09261]
[1738269895449,0.1,3233.9,3233.2,3.09291]
[1738269895668,0.1,3233.7,3233.2,3.09291]
[1738269895804,0.1,3233.9,3233.4,3.0927]
[1738269896154,0.1,3233.7,3233.4,3.09269]
[1738269896502,0.1,3233.9,3233.6,3.09252]
[1738269897650,0.27840626,3233.8,3233.6,3.09252]
[1738269899275,0.1,3233.9,3233.6,3.09252]
[1738269899627,3.19227,3233.9,3233.2,3.09282]
[1738269899830,3.19227,3233.9,3233.3,3.09279]
[1738269900030,0.1,3233.6,3233.1,3.87291]
[1738269900363,3.1931,3233.0,3232.7,0.6154103]
[1738269900566,0.1,3232.8,3232.2,3.09386]
[1738269900871,0.1,3232.8,3232.3,3.09374]
[1738269901041,0.1,3232.8,3232.4,3.09367]
[1738269901235,0.1,3232.8,3232.4,3.09361]
[1738269901443,3.09292,3233.2,3232.4,3.402971]
[1738269901444,0.1,3233.0,3232.4,3.402971]
[1738269901634,0.1,3233.0,3232.6,3.0934]
[1738269901834,0.1,3233.2,3232.8,3.09329]
[1738269902031,3.09275,3233.4,3232.8,6.1865]
[1738269902286,0.83001524,3233.5,3233.3,3.09273]
[1738269902560,0.73001524,3233.5,3233.4,3.09271]
[1738269902736,0.1,3233.9,3233.5,3.09254]
[1738269903362,0.1,3233.7,3233.2,0.8135]
[1738269903539,0.1,3233.3,3233.0,3.09302]
[1738269903733,0.1,3233.3,3232.8,3.09321]
[1738269904181,0.1,3233.3,3232.6,3.09344]
[1738269904461,0.1,3233.1,3232.5,0.772]
[1738269904678,0.1,3233.1,3232.5,1.1895021]
[1738269904844,0.1,3233.1,3232.5,3.86554]
[1738269905176,0.1,3232.9,3232.2,0.63196059]
[1738269905330,0.1,3232.9,3231.4,0.55]
[1738269905331,3.19377,3232.3,3231.6,3.09435]
[1738269905661,0.09855006,3232.3,3231.6,3.09435]
[1738269905877,0.09855006,3232.3,3231.8,3.09423]
[1738269906162,0.28134337,3232.2,3231.9,3.09413]
[1738269906363,0.28134337,3232.2,3231.8,0.618858]
[1738269906563,0.09855006,3231.9,3231.2,3.09474]
[1738269906926,0.09855006,3231.9,3231.4,3.09453]
[1738269907135,0.09855006,3231.9,3231.4,6.18908]
[1738269907346,0.09855006,3231.9,3231.4,3.713438]
[1738269907558,0.09855006,3231.7,3231.2,3.09479]
[1738269908067,0.09855006,3231.3,3230.8,3.09516]
[1738269908567,0.09855006,3231.3,3231.0,3.09499]
[1738269908968,0.09855006,3231.7,3231.5,3.09452]
[1738269909268,0.09855006,3231.7,3231.5,0.309452]
[1738269909445,0.09855006,3231.7,3231.6,3.09444]
[1738269909642,0.09855006,3232.0,3231.9,3.09415]
[1738269909856,0.09855006,3232.0,3231.8,3.09423]
[1738269910155,0.09855006,3232.2,3231.7,3.09426]
[1738269910366,0.09855006,3232.4,3232.2,3.09379]
[1738269910543,0.09855006,3232.4,3232.3,3.09377]
[1738269910729,0.7865,3233.0,3232.6,3.09348]
[1738269911071,0.821,3233.5,3232.4,0.01588858]
[1738269911229,0.821,3233.5,3232.3,0.8159]
[1738269911230,0.09855006,3233.5,3233.4,3.09271]
[1738269911431,0.09855006,3232.6,3231.5,0.7781]
[1738269911646,0.09855006,3232.9,3232.5,3.09358]
[1738269911853,0.09855006,3232.8,3232.0,3.094]
[1738269912173,0.09855006,3233.4,3232.1,3.10985246]
[1738269912374,0.09855006,3233.4,3233.0,3.09303]
[1738269912671,0.09855006,3233.4,3233.2,3.0929]
[1738269913167,0.09855006,3233.0,3232.7,3.09338]
[1738269913373,0.09855006,3233.4,3233.2,3.09289]
[1738269913576,3.17344787,3233.8,3233.4,3.09265]
[1738269913869,3.17344787,3233.8,3233.5,3.0926]
[1738269914071,3.07489781,3233.8,3233.6,3.09245]
[1738269914257,3.17344787,3234.2,3233.7,3.09243]
[1738269914572,3.17344787,3234.2,3234.0,3.09214]
[1738269914733,3.07489781,3234.2,3234.1,3.09205]
[1738269915644,1.61120589,3234.2,3234.1,3.10790362]
[1738269915838,1.61120589,3234.2,3234.1,3.09205]
[1738269916178,1.61120589,3234.2,3234.1,3.88565]
[1738269916346,1.61120589,3234.2,3234.1,4.583429]
[1738269917274,1.12343847,3234.2,3234.1,4.583429]
[1738269918665,0.09855006,3235.2,3234.1,1.491379]
[1738269918854,0.09855006,3235.2,3235.0,3.09117]
[1738269919442,1.12343847,3235.3,3235.0,3.09117]
[1738269919648,1.12343847,3235.3,3235.2,3.09099]
[1738269921377,1.12343847,3235.3,3235.2,3.10681759]
[1738269921679,3.60762341,3235.9,3235.8,3.09042]
[1738269922544,0.2,3238.5,3236.5,3.08975]
[1738269922545,3.29759327,3236.6,3236.5,3.08975]
[1738269923270,2.9884439,3236.6,3236.5,3.707712]
[1738269923943,1.71e-06,3236.6,3236.5,3.707712]
[1738269924148,1.71e-06,3236.6,3236.5,6.707712]
[1738269924780,1.71e-06,3236.6,3236.5,8.051312]
[1738269924986,1.71e-06,3236.6,3236.5,8.73442354]
[1738269926678,0.09855006,3238.2,3237.7,3.08852]
[1738269927148,0.09855006,3238.2,3237.8,0.49673014]
[1738269927350,0.09855006,3238.2,3237.8,3.34885049]
[1738269927745,0.09855006,3238.2,3237.9,0.27912294]
[1738269928073,3.18687006,3238.0,3237.7,0.13364378]
[1738269928271,0.09855006,3238.0,3237.5,0.13315378]
[1738269928539,0.09855006,3237.6,3237.5,0.13315378]
[1738269929156,0.09855006,3237.6,3237.1,0.06407449]
[1738269929583,0.09855006,3237.6,3237.1,3.15319449]
[1738269929796,0.09855006,3237.2,3236.5,1.46806042]
[1738269929968,0.09855006,3237.2,3236.7,3.08947]
[1738269930291,0.09855006,3237.3,3236.9,3.08931]
[1738269930589,0.09855006,3237.3,3236.7,0.01578434]
[1738269930590,0.09855006,3237.7,3237.3,3.08895]
[1738269931166,0.09855006,3237.7,3237.4,0.05488482]
[1738269931374,0.09855006,3237.5,3237.4,0.05359984]
[1738269931685,3.19485006,3237.5,3237.4,0.05359984]
[1738269932048,3.0963,3237.5,3237.4,0.05359984]
[1738269932269,0.09855006,3237.5,3237.4,0.05359984]
[1738269932603,0.09855006,3237.7,3237.4,0.05359984]
[1738269932912,0.85535006,3237.9,3237.5,3.08879]
[1738269933198,0.85535006,3237.9,3237.6,3.08868]
[1738269933413,0.85535006,3237.9,3237.5,3.08879]
[1738269933702,0.09855006,3237.5,3237.4,0.05359984]
[1738269933906,0.09855006,3237.6,3237.4,0.05359984]
[1738269934197,0.09855006,3237.8,3237.4,3.14248984]
[1738269934501,0.09855006,3237.6,3237.5,0.05359819]
[1738269935064,0.09855006,3237.6,3237.1,2.14276819]
[1738269935279,0.09855006,3237.6,3237.0,3.08927]
[1738269935613,0.09855006,3237.6,3236.6,0.01577887]
[1738269935614,0.09855006,3237.6,3237.4,3.08888]
[1738269935979,0.09855006,3237.6,3237.2,3.08907]
[1738269936360,0.09855006,3237.4,3236.9,3.08933]
[1738269936626,0.09855006,3236.9,3236.6,3.08964]
[1738269937401,0.09855006,3237.1,3236.5,3.08969]
[1738269937604,0.09855006,3237.1,3236.6,3.08962]
[1738269938124,0.09855006,3237.1,3236.6,3.08959]
[1738269938295,0.09855006,3237.1,3236.5,3.08972]
[1738269938296,0.09855006,3237.1,3236.7,3.11101622]
[1738269938800,0.09855006,3236.9,3236.8,0.02146556]
[1738269939213,0.09855006,3237.3,3237.1,3.08916]
[1738269939421,0.7724,3237.7,3236.8,0.02146556]
[1738269939422,3.08831,3238.1,3237.3,3.08899]
[1738269939619,0.09855006,3237.8,3237.6,6.17729]
[1738269939899,0.09855006,3238.0,3237.7,3.0886]
[1738269940090,0.09855006,3237.8,3237.7,0.02145959]
[1738269940288,0.07709113,3238.0,3237.6,3.08863]
[1738269940626,0.07709113,3237.8,3237.4,3.39933707]
[1738269940772,0.07709113,3237.8,3237.7,0.01926986]
[1738269940971,0.07709113,3238.0,3237.7,0.01926986]
[1738269941281,0.07709113,3238.0,3237.9,3.08842]
[1738269941665,0.07709113,3238.3,3237.9,3.72725666]
[1738269941893,0.07709113,3238.3,3238.2,3.08813]
[1738269942096,0.005,3238.4,3238.3,3.08804]
[1738269942668,0.005,3238.4,3238.3,3.10379032]
[1738269943579,0.005,3238.4,3238.3,3.71056445]
[1738269943784,0.005,3238.4,3238.3,9.22520927]
[1738269943993,0.005,3238.4,3238.3,9.20945895]
[1738269945023,0.005,3238.4,3238.3,9.46145895]
[1738269947032,0.005,3238.4,3238.3,8.96145895]
[1738269947990,0.07709113,3239.3,3238.3,8.96145895]
[1738269948197,0.07709113,3239.3,3239.0,3.08734]
[1738269949035,0.07709113,3239.3,3238.8,0.01573458]
[1738269949287,0.07709113,3239.3,3239.1,3.08724]
[1738269949525,0.07709113,3239.3,3239.0,3.08729]
[1738269949926,0.07709113,3239.3,3239.2,3.08718]
[1738269950126,0.07709113,3239.3,3239.1,3.0872]
[1738269950913,0.07709113,3239.3,3239.0,3.08728]
[1738269951125,0.07709113,3239.0,3238.6,3.08768]
[1738269951316,0.7828,3240.0,3238.8,3.08749]
[1738269951532,3.08674,3239.7,3239.1,3.08721]
[1738269951906,3.08652,3239.9,3239.2,3.08714]
[1738269952244,3.08652,3239.9,3239.2,3.09653969]
[1738269952245,3.08662,3239.8,3239.2,3.09653969]
[1738269952542,0.0075,3239.9,3239.3,0.00939943]
[1738269952738,3.08699,3239.4,3239.3,0.00939943]
[1738269952948,0.0075,3239.9,3239.3,0.00939943]
[1738269953151,3.0869,3239.5,3239.3,0.00307165]
[1738269953304,3.08674,3239.7,3239.3,0.00307165]
[1738269953710,3.08652,3239.9,3239.3,0.00307165]
[1738269953905,3.08662,3239.8,3239.3,0.00307165]
[1738269954216,3.08672,3239.7,3239.3,0.00307165]
[1738269954417,3.08692,3239.5,3239.3,0.00307165]
[1738269954642,3.08699,3239.4,3239.3,0.00307165]
[1738269955814,3.08691,3239.5,3239.3,0.00307165]
[1738269956214,3.08699,3239.4,3239.3,0.00307165]
[1738269956515,3.08671,3239.7,3239.3,0.00307165]
[1738269957155,0.7828,3240.0,3239.5,3.08689]
[1738269957335,3.08654,3239.9,3239.3,0.00307165]
[1738269957540,3.08654,3239.9,3239.4,3.08698]
[1738269957944,3.08654,3239.9,3239.3,0.00307165]
[1738269958328,3.08654,3239.9,3239.4,3.08698]
[1738269958774,0.7828,3240.0,3239.4,3.08698]
[1738269958982,3.08612,3240.4,3239.8,3.08654]
[1738269959161,3.08631,3240.2,3239.4,3.4117112]
[1738269959361,3.08606,3240.4,3239.6,3.08678]
[1738269959675,3.0862,3240.3,3239.9,0.00307108]
[1738269960252,0.8032,3240.6,3239.9,0.00307108]
[1738269960455,1.54358409,3240.6,3239.9,0.00307108]
[1738269960651,3.08628,3240.2,3239.9,0.00307108]
[1738269960855,3.08608,3240.4,3239.9,0.00307108]
[1738269961151,0.8032,3240.6,3240.1,3.08629]
[1738269961479,3.08556,3240.9,3240.2,0.0030708]
[1738269961653,3.08571,3240.8,3240.2,3.0892608]
[1738269961850,3.08552,3241.0,3240.4,3.08597]
[1738269962063,3.08572,3240.8,3240.3,0.00307071]
[1738269962406,3.08566,3240.8,3240.5,0.00307052]
[1738269962580,3.08579,3240.7,3240.0,0.61081431]
[1738269962784,3.08579,3240.7,3240.3,0.00307071]
[1738269963093,3.08527,3241.2,3240.0,4.14829474]
[1738269963239,3.08543,3241.1,3240.4,0.00307061]
[1738269963603,3.08543,3241.1,3239.7,3.08666]
[1738269963604,3.08595,3240.5,3239.7,3.08666]
[1738269963808,3.85634,3240.6,3240.5,0.00307052]
[1738269963958,4.859122,3240.6,3240.5,0.00307052]
[1738269964691,7.866622,3240.6,3240.5,0.00307052]
[1738269964895,7.866622,3240.6,3240.5,5.2e-07]
[1738269965095,7.890322,3240.6,3240.5,5.2e-07]
[1738269965296,3.08719,3239.2,3238.5,0.7737]
[1738269965598,3.08738,3239.0,3238.5,0.7737]
[1738269965918,3.08728,3239.1,3238.5,3.86147]
[1738269966310,0.55973493,3239.1,3238.2,3.08811]
[1738269966505,3.08767,3238.7,3238.0,3.08828]
[1738269966845,0.55973493,3239.1,3237.8,3.08849]
[1738269967043,3.08762,3238.8,3237.6,3.10445739]
[1738269967207,3.08781,3238.6,3237.9,3.08835]
[1738269967402,3.08781,3238.6,3238.0,3.0883]
[1738269967703,6.17519,3238.8,3238.1,3.08819]
[1738269967907,3.08757,3238.8,3238.2,3.51494091]
[1738269968205,3.08834,3238.0,3237.8,3.51494091]
[1738269968405,3.08834,3238.0,3237.4,3.08888]
[1738269968655,3.08834,3238.0,3237.3,3.08897]
[1738269968805,3.08827,3238.1,3237.1,2.445]
[1738269969009,0.85550319,3238.5,3237.5,3.0888]
[1738269969208,3.08808,3238.3,3237.6,3.0887]
[1738269969423,3.9048,3238.5,3238.0,3.08825]
[1738269969424,0.8169,3238.5,3238.0,3.08825]
[1738269969717,3.08768,3238.7,3237.9,3.91768]
[1738269969957,3.08768,3238.7,3238.2,3.08813]
[1738269970254,3.08756,3238.8,3238.2,3.08813]
[1738269970475,3.08733,3239.1,3238.4,3.0879]
[1738269970621,3.83952,3239.3,3238.4,3.0879]
[1738269970824,3.83952,3239.3,3238.6,3.08774]
[1738269971365,3.08735,3239.1,3238.4,3.39669]
[1738269971667,3.08757,3238.8,3238.4,0.30879]
[1738269971956,3.08749,3238.9,3238.0,3.70618441]
[1738269971957,3.08769,3238.7,3238.0,3.08826]
[1738269972132,3.08769,3238.7,3238.2,3.08813]
[1738269972560,3.08801,3238.4,3237.8,3.08846]
[1738269972720,3.08769,3238.7,3237.9,3.08833]
[1738269972920,3.08786,3238.5,3237.9,3.08833]
[1738269973926,3.0875,3238.9,3237.9,4.45125397]
[1738269974263,0.7524,3239.3,3238.2,3.08812]
[1738269974264,3.08758,3238.8,3238.2,3.08812]
[1738269974573,0.7524,3239.3,3237.9,4.43549465]
[1738269974784,3.08755,3238.9,3238.1,3.0882]
[1738269974988,3.08766,3238.7,3238.1,3.0882]
[1738269975277,3.08753,3238.9,3238.1,3.0882]
[1738269975422,3.08776,3238.6,3237.9,7.52389465]
[1738269975743,3.08757,3238.8,3238.2,3.08812]
[1738269976263,3.08739,3239.0,3238.2,3.08812]
[1738269976470,3.08757,3238.8,3238.2,3.08812]
[1738269976761,3.08757,3238.8,3238.2,3.08805]
[1738269976960,3.08757,3238.8,3238.3,3.08803]
[1738269977132,0.7524,3239.3,3238.4,7.98098072]
[1738269977133,3.08729,3239.1,3238.4,7.98098072]
[1738269977648,3.08764,3238.8,3238.4,4.06331072]
[1738269977849,3.0878,3238.6,3238.0,0.8159]
[1738269978058,3.08832,3238.0,3237.9,4.06331072]
[1738269978221,3.0884,3238.0,3237.4,7.15216072]
[1738269978421,3.08821,3238.2,3237.5,3.08873]
[1738269978722,3.08815,3238.2,3237.4,7.15216072]
[1738269979045,3.08815,3238.2,3237.2,3.90496]
[1738269979046,0.03860171,3238.1,3237.2,0.8159]
[1738269979250,6.17674,3238.0,3237.3,3.08893]
[1738269979455,3.08844,3237.9,3237.3,3.08893]
[1738269979848,3.08832,3238.0,3237.3,0.699393]
[1738269980160,3.08816,3238.2,3237.5,3.08872]
[1738269980327,3.08834,3238.0,3237.4,4.06331072]
[1738269980866,3.08834,3238.0,3237.4,7.15218072]
[1738269981360,3.08842,3237.9,3237.4,7.15218072]
[1738269981659,3.08853,3237.8,3237.4,4.06331072]
[1738269982053,3.08839,3238.0,3237.4,4.06331072]
[1738269982361,3.0883,3238.1,3237.4,4.06331072]
[1738269982562,3.08842,3237.9,3237.4,4.06331072]
[1738269983073,3.08836,3238.0,3237.4,4.06331072]
[1738269983249,3.08836,3238.0,3237.4,7.15215072]
[1738269983443,3.08813,3238.2,3237.6,3.08869]
[1738269983774,3.08777,3238.6,3238.0,3.08826]
[1738269983973,3.89756,3238.8,3238.1,3.08817]
[1738269984155,3.08756,3238.8,3238.3,3.08803]
[1738269984676,3.0874,3239.0,3238.4,3.08793]
[1738269984828,3.0874,3239.0,3238.1,3.0882]
[1738269985059,3.08783,3238.6,3238.1,0.79451107]
[1738269985273,3.08761,3238.8,3238.2,3.08809]
[1738269985487,3.08741,3239.0,3238.3,3.08798]
[1738269985689,3.86322,3239.2,3238.4,4.07906163]
[1738269985896,3.08691,3239.5,3238.9,3.08744]
[1738269986056,3.8717,3239.7,3238.9,8.23439472]
[1738269986271,3.8717,3239.7,3239.0,3.0873]
[1738269986877,3.0867,3239.7,3239.2,3.08717]
[1738269987277,3.08718,3239.2,3238.9,4.06331072]
[1738269987696,3.08729,3239.1,3238.5,0.8082]
[1738269987959,3.08729,3239.1,3238.5,3.89601]
[1738269988734,3.08709,3239.3,3238.9,3.51432307]
[1738269988893,3.08718,3239.2,3238.9,3.51432307]
[1738269989096,6.1741,3239.4,3238.9,3.51432307]
[1738269989303,3.08719,3239.2,3238.6,3.08772]
[1738269989514,3.08714,3239.3,3238.6,4.13753431]